{"text_format":"1","workbook":"xlsx","n_sheets":5,"sheets":["Inscriptions","Chiffrage Détaillé","Commandes Macro","Références","Feuil5"],"not_rendered":{"charts":0,"images":3,"macros":1,"external_links":0,"defined_names":72,"comments":1,"pivot_tables":0},"unopened":[],"bounds":{"document_bytes":16777216,"sheet_cells":100000,"rows_first":2000,"rows_last":500,"rows_between":2000,"halvings":0,"cell_chars":16384,"cell_head_chars":4096},"cells_cut":0,"cells_raw":0,"read":"whole","date_system":"1900"}

{"sheet":"Inscriptions","index":0,"n_rows":30,"n_cols":35,"rows_kept":30,"cut":false,"hidden":false,"merged":[[7,28,7,29],[7,22,7,23],[7,24,7,26],[5,5,5,6]]}
[]
[]
[null,null,null,"Mise à jour ",null,null,null,null,"    TOTAL à ENCAISSER :",null,null,{"$f":"SUM(Total_Couts)","v":0}]
[null,null,null,"2020-10-14",null,null,null,null,"    TOTAL ENCAISSÉ : ",null,null,{"$f":"SUMIF(Payé,\"OUI\",Total_Couts)","v":0}]
[]
[null,null,null,"Cellule AS à Renseigner Obligatoirement"]
[]
[null,null,"Saisir les données Impérativement dans l'ordre, de gauche à droite.",null,null,null,null,null,null,null,null,"Pour trier sur une colonne, double cliquer sur l'entête associée",null,null,null,null,null,null,null,null,null,null,"Tests ESF",null,"Compétitions",null,null,null,null,null,null,null,"Options"]
["Payé","Date\nd'incription",{"$f":"\"NOM\"&\" (\"&COUNTA(NOM)&\" inscrits)\"","v":"NOM (0 inscrits)"},"Prénom","AS\nRégionale","Statut","N° carte","Société\n(Si  AGT)","Date de Naissance","Sexe",{"$f":"\"Age au \" &TEXT(Au_01_01_année_JNH, \"jj/mm/aa\")","v":"Age au 01/01/21"},"Catégorie","N° Téléphone\n(sans espace)"," Email\n(Préciser bien l'adresse Email)","Moyen de Transport","Formules Hébergement Séjour","Colocataire 1\n(NOM & Prénom)","Colocataire 2\n(NOM & Prénom)","Alpin\nForfaits / Cours","Fond\nForfait / Cours","Cours Niveau\nSki / Surf","Cours Niveau\nFond",{"$f":"\" Flèche (\"&COUNTA(Flèche)&\")\"","v":" Flèche (0)"},{"$f":"\" Chamois (\"&COUNTA(Chamois)&\")\"","v":" Chamois (0)"},{"$f":"\" Géant Ski (\"&COUNTA(Géant_Ski)&\")\"","v":" Géant Ski (0)"},{"$f":"\" Géant Surf (\"&COUNTA(Géant_Surf)&\")\"","v":" Géant Surf (0)"},{"$f":"\" Fond (\"&COUNTA(Fond)&\")\"","v":" Fond (0)"},{"$f":"\" Eurosport (\"&COUNTA(Eurosport)&\")\"","v":" Eurosport (0)"},{"$f":"Références!D14 & \" (\"&COUNTA(Option_1)&\")\"","v":" (0)"},{"$f":"Références!D15 & \" (\"&COUNTA(Option_2)&\")\"","v":" (0)"},{"$f":"Références!D16 & \" (\"&COUNTA(Option_3)&\")\"","v":" (0)"},{"$f":"Références!D17 & \" (\"&COUNTA(Option_RM)&\")\"","v":"RM  Samedi (0)"},{"$f":"Références!D18 & \" (\"&COUNTA(Option_Assurance)&\")\"","v":"Assurance Covid (0)"},"Total Coûts Participant\nHors options","Total Coûts Participant\nAvec options"]
[null,null,null,null,null,null,null,null,null,null,{"$f":"IF(OR(NOM=\"\",Date_Naissance=\"\"),\"\",DATEDIF(Date_Naissance,Au_01_01_année_JNH,\"y\"))","v":""},{"$f":"IF(OR(NOM=\"\",Date_Naissance=\"\"),\"\",IF(Age_01_01_année_JNH<Cat_junior,\"Junior\",IF(Age_01_01_année_JNH<Cat_senior,\"Sénior\",IF(Age_01_01_année_JNH<Cat_veteran,\"Vétéran 1\",\"Vétéran 2\")))&\" \"&Sexe)","v":""},null,null,null,null,null,null,null,null,null,null,null,null,null,null,null,null,null,null,null,null,null,{"$f":"IF(Hébergement=\"\",0,VLOOKUP(Hébergement,Tableau_Prix_Hebergement,2,FALSE))+IF(RM_Cours=\"\",0,VLOOKUP(RM_Cours,Tableau_Total_RM_Cours,4,FALSE)) +IF(Cours_Fond=\"\",0,VLOOKUP(Cours_Fond,Tableau_Total_RM_Cours,4,FALSE))","v":0},{"$f":"IF(Hébergement=\"\",0,VLOOKUP(Hébergement,Tableau_Prix_Hebergement,2,FALSE))+IF(RM_Cours=\"\",0,VLOOKUP(RM_Cours,Tableau_Total_RM_Cours,4,FALSE)) +IF(Cours_Fond=\"\",0,VLOOKUP(Cours_Fond,Tableau_Total_RM_Cours,4,FALSE)) +IF(Option_1<>\"x\",0,VLOOKUP(\"Option 1\",Tableau_Options,3,FALSE)) +IF(Option_2<>\"x\",0,VLOOKUP(\"Option 2\",Tableau_Options,3,FALSE)) +IF(Option_3<>\"x\",0,VLOOKUP(\"Option 3\",Tableau_Options,3,FALSE))+IF(Option_RM<>\"x\",0,VLOOKUP(\"Option RM\",Tableau_Options,3,FALSE))+IF(Option_Assurance<>\"x\",0,VLOOKUP(\"Option Assurance\",Tableau_Options,3,FALSE))","v":0}]
[null,null,null,null,null,null,null,null,null,null,{"$f":"IF(OR(NOM=\"\",Date_Naissance=\"\"),\"\",DATEDIF(Date_Naissance,Au_01_01_année_JNH,\"y\"))","v":""},{"$f":"IF(OR(NOM=\"\",Date_Naissance=\"\"),\"\",IF(Age_01_01_année_JNH<Cat_junior,\"Junior\",IF(Age_01_01_année_JNH<Cat_senior,\"Sénior\",IF(Age_01_01_année_JNH<Cat_veteran,\"Vétéran 1\",\"Vétéran 2\")))&\" \"&Sexe)","v":""},null,null,null,null,null,null,null,null,null,null,null,null,null,null,null,null,null,null,null,null,null,{"$f":"IF(Hébergement=\"\",0,VLOOKUP(Hébergement,Tableau_Prix_Hebergement,2,FALSE))+IF(RM_Cours=\"\",0,VLOOKUP(RM_Cours,Tableau_Total_RM_Cours,4,FALSE)) +IF(Cours_Fond=\"\",0,VLOOKUP(Cours_Fond,Tableau_Total_RM_Cours,4,FALSE))","v":0},{"$f":"IF(Hébergement=\"\",0,VLOOKUP(Hébergement,Tableau_Prix_Hebergement,2,FALSE))+IF(RM_Cours=\"\",0,VLOOKUP(RM_Cours,Tableau_Total_RM_Cours,4,FALSE)) +IF(Cours_Fond=\"\",0,VLOOKUP(Cours_Fond,Tableau_Total_RM_Cours,4,FALSE)) +IF(Option_1<>\"x\",0,VLOOKUP(\"Option 1\",Tableau_Options,3,FALSE)) +IF(Option_2<>\"x\",0,VLOOKUP(\"Option 2\",Tableau_Options,3,FALSE)) +IF(Option_3<>\"x\",0,VLOOKUP(\"Option 3\",Tableau_Options,3,FALSE))+IF(Option_RM<>\"x\",0,VLOOKUP(\"Option RM\",Tableau_Options,3,FALSE))+IF(Option_Assurance<>\"x\",0,VLOOKUP(\"Option Assurance\",Tableau_Options,3,FALSE))","v":0}]
[null,null,null,null,null,null,null,null,null,null,{"$f":"IF(OR(NOM=\"\",Date_Naissance=\"\"),\"\",DATEDIF(Date_Naissance,Au_01_01_année_JNH,\"y\"))","v":""},{"$f":"IF(OR(NOM=\"\",Date_Naissance=\"\"),\"\",IF(Age_01_01_année_JNH<Cat_junior,\"Junior\",IF(Age_01_01_année_JNH<Cat_senior,\"Sénior\",IF(Age_01_01_année_JNH<Cat_veteran,\"Vétéran 1\",\"Vétéran 2\")))&\" \"&Sexe)","v":""},null,null,null,null,null,null,null,null,null,null,null,null,null,null,null,null,null,null,null,null,null,{"$f":"IF(Hébergement=\"\",0,VLOOKUP(Hébergement,Tableau_Prix_Hebergement,2,FALSE))+IF(RM_Cours=\"\",0,VLOOKUP(RM_Cours,Tableau_Total_RM_Cours,4,FALSE)) +IF(Cours_Fond=\"\",0,VLOOKUP(Cours_Fond,Tableau_Total_RM_Cours,4,FALSE))","v":0},{"$f":"IF(Hébergement=\"\",0,VLOOKUP(Hébergement,Tableau_Prix_Hebergement,2,FALSE))+IF(RM_Cours=\"\",0,VLOOKUP(RM_Cours,Tableau_Total_RM_Cours,4,FALSE)) +IF(Cours_Fond=\"\",0,VLOOKUP(Cours_Fond,Tableau_Total_RM_Cours,4,FALSE)) +IF(Option_1<>\"x\",0,VLOOKUP(\"Option 1\",Tableau_Options,3,FALSE)) +IF(Option_2<>\"x\",0,VLOOKUP(\"Option 2\",Tableau_Options,3,FALSE)) +IF(Option_3<>\"x\",0,VLOOKUP(\"Option 3\",Tableau_Options,3,FALSE))+IF(Option_RM<>\"x\",0,VLOOKUP(\"Option RM\",Tableau_Options,3,FALSE))+IF(Option_Assurance<>\"x\",0,VLOOKUP(\"Option Assurance\",Tableau_Options,3,FALSE))","v":0}]
[null,null,null,null,null,null,null,null,null,null,{"$f":"IF(OR(NOM=\"\",Date_Naissance=\"\"),\"\",DATEDIF(Date_Naissance,Au_01_01_année_JNH,\"y\"))","v":""},{"$f":"IF(OR(NOM=\"\",Date_Naissance=\"\"),\"\",IF(Age_01_01_année_JNH<Cat_junior,\"Junior\",IF(Age_01_01_année_JNH<Cat_senior,\"Sénior\",IF(Age_01_01_année_JNH<Cat_veteran,\"Vétéran 1\",\"Vétéran 2\")))&\" \"&Sexe)","v":""},null,null,null,null,null,null,null,null,null,null,null,null,null,null,null,null,null,null,null,null,null,{"$f":"IF(Hébergement=\"\",0,VLOOKUP(Hébergement,Tableau_Prix_Hebergement,2,FALSE))+IF(RM_Cours=\"\",0,VLOOKUP(RM_Cours,Tableau_Total_RM_Cours,4,FALSE)) +IF(Cours_Fond=\"\",0,VLOOKUP(Cours_Fond,Tableau_Total_RM_Cours,4,FALSE))","v":0},{"$f":"IF(Hébergement=\"\",0,VLOOKUP(Hébergement,Tableau_Prix_Hebergement,2,FALSE))+IF(RM_Cours=\"\",0,VLOOKUP(RM_Cours,Tableau_Total_RM_Cours,4,FALSE)) +IF(Cours_Fond=\"\",0,VLOOKUP(Cours_Fond,Tableau_Total_RM_Cours,4,FALSE)) +IF(Option_1<>\"x\",0,VLOOKUP(\"Option 1\",Tableau_Options,3,FALSE)) +IF(Option_2<>\"x\",0,VLOOKUP(\"Option 2\",Tableau_Options,3,FALSE)) +IF(Option_3<>\"x\",0,VLOOKUP(\"Option 3\",Tableau_Options,3,FALSE))+IF(Option_RM<>\"x\",0,VLOOKUP(\"Option RM\",Tableau_Options,3,FALSE))+IF(Option_Assurance<>\"x\",0,VLOOKUP(\"Option Assurance\",Tableau_Options,3,FALSE))","v":0}]
[null,null,null,null,null,null,null,null,null,null,{"$f":"IF(OR(NOM=\"\",Date_Naissance=\"\"),\"\",DATEDIF(Date_Naissance,Au_01_01_année_JNH,\"y\"))","v":""},{"$f":"IF(OR(NOM=\"\",Date_Naissance=\"\"),\"\",IF(Age_01_01_année_JNH<Cat_junior,\"Junior\",IF(Age_01_01_année_JNH<Cat_senior,\"Sénior\",IF(Age_01_01_année_JNH<Cat_veteran,\"Vétéran 1\",\"Vétéran 2\")))&\" \"&Sexe)","v":""},null,null,null,null,null,null,null,null,null,null,null,null,null,null,null,null,null,null,null,null,null,{"$f":"IF(Hébergement=\"\",0,VLOOKUP(Hébergement,Tableau_Prix_Hebergement,2,FALSE))+IF(RM_Cours=\"\",0,VLOOKUP(RM_Cours,Tableau_Total_RM_Cours,4,FALSE)) +IF(Cours_Fond=\"\",0,VLOOKUP(Cours_Fond,Tableau_Total_RM_Cours,4,FALSE))","v":0},{"$f":"IF(Hébergement=\"\",0,VLOOKUP(Hébergement,Tableau_Prix_Hebergement,2,FALSE))+IF(RM_Cours=\"\",0,VLOOKUP(RM_Cours,Tableau_Total_RM_Cours,4,FALSE)) +IF(Cours_Fond=\"\",0,VLOOKUP(Cours_Fond,Tableau_Total_RM_Cours,4,FALSE)) +IF(Option_1<>\"x\",0,VLOOKUP(\"Option 1\",Tableau_Options,3,FALSE)) +IF(Option_2<>\"x\",0,VLOOKUP(\"Option 2\",Tableau_Options,3,FALSE)) +IF(Option_3<>\"x\",0,VLOOKUP(\"Option 3\",Tableau_Options,3,FALSE))+IF(Option_RM<>\"x\",0,VLOOKUP(\"Option RM\",Tableau_Options,3,FALSE))+IF(Option_Assurance<>\"x\",0,VLOOKUP(\"Option Assurance\",Tableau_Options,3,FALSE))","v":0}]
[null,null,null,null,null,null,null,null,null,null,{"$f":"IF(OR(NOM=\"\",Date_Naissance=\"\"),\"\",DATEDIF(Date_Naissance,Au_01_01_année_JNH,\"y\"))","v":""},{"$f":"IF(OR(NOM=\"\",Date_Naissance=\"\"),\"\",IF(Age_01_01_année_JNH<Cat_junior,\"Junior\",IF(Age_01_01_année_JNH<Cat_senior,\"Sénior\",IF(Age_01_01_année_JNH<Cat_veteran,\"Vétéran 1\",\"Vétéran 2\")))&\" \"&Sexe)","v":""},null,null,null,null,null,null,null,null,null,null,null,null,null,null,null,null,null,null,null,null,null,{"$f":"IF(Hébergement=\"\",0,VLOOKUP(Hébergement,Tableau_Prix_Hebergement,2,FALSE))+IF(RM_Cours=\"\",0,VLOOKUP(RM_Cours,Tableau_Total_RM_Cours,4,FALSE)) +IF(Cours_Fond=\"\",0,VLOOKUP(Cours_Fond,Tableau_Total_RM_Cours,4,FALSE))","v":0},{"$f":"IF(Hébergement=\"\",0,VLOOKUP(Hébergement,Tableau_Prix_Hebergement,2,FALSE))+IF(RM_Cours=\"\",0,VLOOKUP(RM_Cours,Tableau_Total_RM_Cours,4,FALSE)) +IF(Cours_Fond=\"\",0,VLOOKUP(Cours_Fond,Tableau_Total_RM_Cours,4,FALSE)) +IF(Option_1<>\"x\",0,VLOOKUP(\"Option 1\",Tableau_Options,3,FALSE)) +IF(Option_2<>\"x\",0,VLOOKUP(\"Option 2\",Tableau_Options,3,FALSE)) +IF(Option_3<>\"x\",0,VLOOKUP(\"Option 3\",Tableau_Options,3,FALSE))+IF(Option_RM<>\"x\",0,VLOOKUP(\"Option RM\",Tableau_Options,3,FALSE))+IF(Option_Assurance<>\"x\",0,VLOOKUP(\"Option Assurance\",Tableau_Options,3,FALSE))","v":0}]
[null,null,null,null,null,null,null,null,null,null,{"$f":"IF(OR(NOM=\"\",Date_Naissance=\"\"),\"\",DATEDIF(Date_Naissance,Au_01_01_année_JNH,\"y\"))","v":""},{"$f":"IF(OR(NOM=\"\",Date_Naissance=\"\"),\"\",IF(Age_01_01_année_JNH<Cat_junior,\"Junior\",IF(Age_01_01_année_JNH<Cat_senior,\"Sénior\",IF(Age_01_01_année_JNH<Cat_veteran,\"Vétéran 1\",\"Vétéran 2\")))&\" \"&Sexe)","v":""},null,null,null,null,null,null,null,null,null,null,null,null,null,null,null,null,null,null,null,null,null,{"$f":"IF(Hébergement=\"\",0,VLOOKUP(Hébergement,Tableau_Prix_Hebergement,2,FALSE))+IF(RM_Cours=\"\",0,VLOOKUP(RM_Cours,Tableau_Total_RM_Cours,4,FALSE)) +IF(Cours_Fond=\"\",0,VLOOKUP(Cours_Fond,Tableau_Total_RM_Cours,4,FALSE))","v":0},{"$f":"IF(Hébergement=\"\",0,VLOOKUP(Hébergement,Tableau_Prix_Hebergement,2,FALSE))+IF(RM_Cours=\"\",0,VLOOKUP(RM_Cours,Tableau_Total_RM_Cours,4,FALSE)) +IF(Cours_Fond=\"\",0,VLOOKUP(Cours_Fond,Tableau_Total_RM_Cours,4,FALSE)) +IF(Option_1<>\"x\",0,VLOOKUP(\"Option 1\",Tableau_Options,3,FALSE)) +IF(Option_2<>\"x\",0,VLOOKUP(\"Option 2\",Tableau_Options,3,FALSE)) +IF(Option_3<>\"x\",0,VLOOKUP(\"Option 3\",Tableau_Options,3,FALSE))+IF(Option_RM<>\"x\",0,VLOOKUP(\"Option RM\",Tableau_Options,3,FALSE))+IF(Option_Assurance<>\"x\",0,VLOOKUP(\"Option Assurance\",Tableau_Options,3,FALSE))","v":0}]
[null,null,null,null,null,null,null,null,null,null,{"$f":"IF(OR(NOM=\"\",Date_Naissance=\"\"),\"\",DATEDIF(Date_Naissance,Au_01_01_année_JNH,\"y\"))","v":""},{"$f":"IF(OR(NOM=\"\",Date_Naissance=\"\"),\"\",IF(Age_01_01_année_JNH<Cat_junior,\"Junior\",IF(Age_01_01_année_JNH<Cat_senior,\"Sénior\",IF(Age_01_01_année_JNH<Cat_veteran,\"Vétéran 1\",\"Vétéran 2\")))&\" \"&Sexe)","v":""},null,null,null,null,null,null,null,null,null,null,null,null,null,null,null,null,null,null,null,null,null,{"$f":"IF(Hébergement=\"\",0,VLOOKUP(Hébergement,Tableau_Prix_Hebergement,2,FALSE))+IF(RM_Cours=\"\",0,VLOOKUP(RM_Cours,Tableau_Total_RM_Cours,4,FALSE)) +IF(Cours_Fond=\"\",0,VLOOKUP(Cours_Fond,Tableau_Total_RM_Cours,4,FALSE))","v":0},{"$f":"IF(Hébergement=\"\",0,VLOOKUP(Hébergement,Tableau_Prix_Hebergement,2,FALSE))+IF(RM_Cours=\"\",0,VLOOKUP(RM_Cours,Tableau_Total_RM_Cours,4,FALSE)) +IF(Cours_Fond=\"\",0,VLOOKUP(Cours_Fond,Tableau_Total_RM_Cours,4,FALSE)) +IF(Option_1<>\"x\",0,VLOOKUP(\"Option 1\",Tableau_Options,3,FALSE)) +IF(Option_2<>\"x\",0,VLOOKUP(\"Option 2\",Tableau_Options,3,FALSE)) +IF(Option_3<>\"x\",0,VLOOKUP(\"Option 3\",Tableau_Options,3,FALSE))+IF(Option_RM<>\"x\",0,VLOOKUP(\"Option RM\",Tableau_Options,3,FALSE))+IF(Option_Assurance<>\"x\",0,VLOOKUP(\"Option Assurance\",Tableau_Options,3,FALSE))","v":0}]
[null,null,null,null,null,null,null,null,null,null,{"$f":"IF(OR(NOM=\"\",Date_Naissance=\"\"),\"\",DATEDIF(Date_Naissance,Au_01_01_année_JNH,\"y\"))","v":""},{"$f":"IF(OR(NOM=\"\",Date_Naissance=\"\"),\"\",IF(Age_01_01_année_JNH<Cat_junior,\"Junior\",IF(Age_01_01_année_JNH<Cat_senior,\"Sénior\",IF(Age_01_01_année_JNH<Cat_veteran,\"Vétéran 1\",\"Vétéran 2\")))&\" \"&Sexe)","v":""},null,null,null,null,null,null,null,null,null,null,null,null,null,null,null,null,null,null,null,null,null,{"$f":"IF(Hébergement=\"\",0,VLOOKUP(Hébergement,Tableau_Prix_Hebergement,2,FALSE))+IF(RM_Cours=\"\",0,VLOOKUP(RM_Cours,Tableau_Total_RM_Cours,4,FALSE)) +IF(Cours_Fond=\"\",0,VLOOKUP(Cours_Fond,Tableau_Total_RM_Cours,4,FALSE))","v":0},{"$f":"IF(Hébergement=\"\",0,VLOOKUP(Hébergement,Tableau_Prix_Hebergement,2,FALSE))+IF(RM_Cours=\"\",0,VLOOKUP(RM_Cours,Tableau_Total_RM_Cours,4,FALSE)) +IF(Cours_Fond=\"\",0,VLOOKUP(Cours_Fond,Tableau_Total_RM_Cours,4,FALSE)) +IF(Option_1<>\"x\",0,VLOOKUP(\"Option 1\",Tableau_Options,3,FALSE)) +IF(Option_2<>\"x\",0,VLOOKUP(\"Option 2\",Tableau_Options,3,FALSE)) +IF(Option_3<>\"x\",0,VLOOKUP(\"Option 3\",Tableau_Options,3,FALSE))+IF(Option_RM<>\"x\",0,VLOOKUP(\"Option RM\",Tableau_Options,3,FALSE))+IF(Option_Assurance<>\"x\",0,VLOOKUP(\"Option Assurance\",Tableau_Options,3,FALSE))","v":0}]
[null,null,null,null,null,null,null,null,null,null,{"$f":"IF(OR(NOM=\"\",Date_Naissance=\"\"),\"\",DATEDIF(Date_Naissance,Au_01_01_année_JNH,\"y\"))","v":""},{"$f":"IF(OR(NOM=\"\",Date_Naissance=\"\"),\"\",IF(Age_01_01_année_JNH<Cat_junior,\"Junior\",IF(Age_01_01_année_JNH<Cat_senior,\"Sénior\",IF(Age_01_01_année_JNH<Cat_veteran,\"Vétéran 1\",\"Vétéran 2\")))&\" \"&Sexe)","v":""},null,null,null,null,null,null,null,null,null,null,null,null,null,null,null,null,null,null,null,null,null,{"$f":"IF(Hébergement=\"\",0,VLOOKUP(Hébergement,Tableau_Prix_Hebergement,2,FALSE))+IF(RM_Cours=\"\",0,VLOOKUP(RM_Cours,Tableau_Total_RM_Cours,4,FALSE)) +IF(Cours_Fond=\"\",0,VLOOKUP(Cours_Fond,Tableau_Total_RM_Cours,4,FALSE))","v":0},{"$f":"IF(Hébergement=\"\",0,VLOOKUP(Hébergement,Tableau_Prix_Hebergement,2,FALSE))+IF(RM_Cours=\"\",0,VLOOKUP(RM_Cours,Tableau_Total_RM_Cours,4,FALSE)) +IF(Cours_Fond=\"\",0,VLOOKUP(Cours_Fond,Tableau_Total_RM_Cours,4,FALSE)) +IF(Option_1<>\"x\",0,VLOOKUP(\"Option 1\",Tableau_Options,3,FALSE)) +IF(Option_2<>\"x\",0,VLOOKUP(\"Option 2\",Tableau_Options,3,FALSE)) +IF(Option_3<>\"x\",0,VLOOKUP(\"Option 3\",Tableau_Options,3,FALSE))+IF(Option_RM<>\"x\",0,VLOOKUP(\"Option RM\",Tableau_Options,3,FALSE))+IF(Option_Assurance<>\"x\",0,VLOOKUP(\"Option Assurance\",Tableau_Options,3,FALSE))","v":0}]
[null,null,null,null,null,null,null,null,null,null,{"$f":"IF(OR(NOM=\"\",Date_Naissance=\"\"),\"\",DATEDIF(Date_Naissance,Au_01_01_année_JNH,\"y\"))","v":""},{"$f":"IF(OR(NOM=\"\",Date_Naissance=\"\"),\"\",IF(Age_01_01_année_JNH<Cat_junior,\"Junior\",IF(Age_01_01_année_JNH<Cat_senior,\"Sénior\",IF(Age_01_01_année_JNH<Cat_veteran,\"Vétéran 1\",\"Vétéran 2\")))&\" \"&Sexe)","v":""},null,null,null,null,null,null,null,null,null,null,null,null,null,null,null,null,null,null,null,null,null,{"$f":"IF(Hébergement=\"\",0,VLOOKUP(Hébergement,Tableau_Prix_Hebergement,2,FALSE))+IF(RM_Cours=\"\",0,VLOOKUP(RM_Cours,Tableau_Total_RM_Cours,4,FALSE)) +IF(Cours_Fond=\"\",0,VLOOKUP(Cours_Fond,Tableau_Total_RM_Cours,4,FALSE))","v":0},{"$f":"IF(Hébergement=\"\",0,VLOOKUP(Hébergement,Tableau_Prix_Hebergement,2,FALSE))+IF(RM_Cours=\"\",0,VLOOKUP(RM_Cours,Tableau_Total_RM_Cours,4,FALSE)) +IF(Cours_Fond=\"\",0,VLOOKUP(Cours_Fond,Tableau_Total_RM_Cours,4,FALSE)) +IF(Option_1<>\"x\",0,VLOOKUP(\"Option 1\",Tableau_Options,3,FALSE)) +IF(Option_2<>\"x\",0,VLOOKUP(\"Option 2\",Tableau_Options,3,FALSE)) +IF(Option_3<>\"x\",0,VLOOKUP(\"Option 3\",Tableau_Options,3,FALSE))+IF(Option_RM<>\"x\",0,VLOOKUP(\"Option RM\",Tableau_Options,3,FALSE))+IF(Option_Assurance<>\"x\",0,VLOOKUP(\"Option Assurance\",Tableau_Options,3,FALSE))","v":0}]
[]
[]
[]
[]
[]
[]
[]
[]
[]
[null,null,null,null,null,null,null,null,null,null,null,null,null,null,null,null,"X"]

{"sheet":"Chiffrage Détaillé","index":1,"n_rows":37,"n_cols":15,"rows_kept":37,"cut":false,"hidden":false,"merged":[[29,4,29,5],[25,4,26,4],[27,4,28,4],[1,4,1,10],[0,4,0,10],[11,4,11,5],[24,1,24,2],[15,11,16,11],[11,11,12,11],[3,4,3,5],[6,4,6,6],[13,4,13,6],[17,11,18,11],[24,4,24,6],[13,11,14,11],[18,4,18,5],[21,4,21,5],[22,4,22,5],[28,13,28,14],[6,13,6,14],[3,13,3,14],[4,13,4,14],[3,9,3,10],[4,9,4,10],[6,9,6,10],[15,13,15,14],[24,13,24,14],[25,11,26,11],[27,11,28,11]]}
[null,null,null,null,"JEUX NATIONAUX D'HIVER AUDIOVISUEL\nORCIERES_MERLETTE   23 AU 30 JANVIER 2020"]
[null,null,null,null,"CHIFFRAGE DÉTAILLÉ RÉGION(S)"]
[]
[null,"Dernière Mise à Jour",null,null,null,null,null,null,null,"TOTAL à ENCAISSER :",null,{"$f":"IF(Nom_Région=\"TOTAL_REGIONS\",SUM(Total_Couts),SUMPRODUCT((Inscriptions_AS=Nom_Région)*1,(Total_Couts)*1))","v":0},null,"Reste à encaisser"]
[null,{"$f":"Inscriptions!D4","v":"2020-10-14"},null,null,null,null,null,null,null,"TOTAL ENCAISSÉ :",null,{"$f":"IF(Nom_Région=\"TOTAL_REGIONS\",SUMIF(Payé,\"OUI\",Total_Couts),SUMPRODUCT((Inscriptions_AS=Nom_Région)*1,(Payé=\"OUI\")*(Total_Couts)))","v":0},null,{"$f":"L4-L5","v":0}]
[]
[null,"AS Régionales ","Nbre Inscrits",null,"Inscriptions Séjour - Semaine",null,null,"Nb Chambres ",null,"Répartition",null,null,null,"Courses"]
[null,"ALPES",{"$f":"COUNTIF(Inscriptions_AS,B8)","v":0},null,"Séjour 7 Nuitées - Twin",null,{"$f":"IF(Nom_Région=\"TOTAL_REGIONS\",COUNTIF(Hébergement,\"7 Nuitées - Twin\"),SUMPRODUCT((Inscriptions_AS=Nom_Région)*1,(Hébergement=\"7 Nuitées - Twin\")*1))","v":0},{"$f":"G8/2","v":0},null,"Nb Inscrits",{"$f":"IF(Nom_Région=\"TOTAL_REGIONS\",COUNTA(NOM),SUMPRODUCT((Inscriptions_AS=Nom_Région)*1,(NOM<>\"\")*1))","v":0},null,null,"Test Flèche",{"$f":"IF(Nom_Région=\"TOTAL_REGIONS\",COUNTA(Flèche),SUMPRODUCT((Inscriptions_AS=Nom_Région)*1,(Flèche=\"X\")*1))","v":0}]
[null,"ALSACE",0,null,"Séjour 7 Nuitées - Couple",null,{"$f":"IF(Nom_Région=\"TOTAL_REGIONS\",COUNTIF(Hébergement,\"7 Nuitées - Couple\"),SUMPRODUCT((Inscriptions_AS=Nom_Région)*1,(Hébergement=\"7 Nuitées - Couple\")*1))","v":0},{"$f":"G9/2","v":0},null,"Hommes",{"$f":"IF(Nom_Région=\"TOTAL_REGIONS\",SUMPRODUCT((Sexe=\"H\")*(NOM<>\"\")),SUMPRODUCT((Inscriptions_AS=Nom_Région)*1,(Sexe=\"H\")*(NOM<>\"\")))","v":0},null,null,"Test Chamois",{"$f":"IF(Nom_Région=\"TOTAL_REGIONS\",COUNTA(Chamois),SUMPRODUCT((Inscriptions_AS=Nom_Région)*1,(Chamois=\"X\")*1))","v":0}]
[null,"AQUITAINE",0,null,"Séjour 7 Nuitées - Single",null,{"$f":"IF(Nom_Région=\"TOTAL_REGIONS\",COUNTIF(Hébergement,\"7 Nuitées - Single\"),SUMPRODUCT((Inscriptions_AS=Nom_Région)*1,(Hébergement=\"7 Nuitées - Single\")*1))","v":0},{"$f":"G10","v":0},null,"Femmes",{"$f":"IF(Nom_Région=\"TOTAL_REGIONS\",SUMPRODUCT((Sexe=\"F\")*(NOM<>\"\")),SUMPRODUCT((Inscriptions_AS=Nom_Région)*1,(Sexe=\"F\")*(NOM<>\"\")))","v":0},null,null,"Géant Ski",{"$f":"IF(Nom_Région=\"TOTAL_REGIONS\",COUNTA(Géant_Ski),SUMPRODUCT((Inscriptions_AS=Nom_Région)*1,(Géant_Ski=\"X\")*1))","v":0}]
[null,"BFC",0,null,"Séjour 7 Nuitées - Triple",null,{"$f":"IF(Nom_Région=\"TOTAL_REGIONS\",COUNTIF(Hébergement,\"7 Nuitées - Triple\"),SUMPRODUCT((Inscriptions_AS=Nom_Région)*1,(Hébergement=\"7 Nuitées - Triple\")*1))","v":0},{"$f":"ROUND(G11/3,1)","v":0},null,null,null,null,null,"Géant Surf",{"$f":"IF(Nom_Région=\"TOTAL_REGIONS\",COUNTA(Géant_Surf),SUMPRODUCT((Inscriptions_AS=Nom_Région)*1,(Géant_Surf=\"X\")*1))","v":0}]
[null,"CORSE",0,null,"TOTAL",null,{"$f":"SUM(G8:G11)","v":0},{"$f":"SUM(H8:H11)","v":0},null,"Junior F",{"$f":"IF(Nom_Région=\"TOTAL_REGIONS\",COUNTIF(Categorie,J12),SUMPRODUCT((Inscriptions_AS=Nom_Région)*1,(Categorie=J12)*1))","v":0},"< 18 ans",null,"Fond",{"$f":"IF(Nom_Région=\"TOTAL_REGIONS\",COUNTA(Fond),SUMPRODUCT((Inscriptions_AS=Nom_Région)*1,(Fond=\"X\")*1))","v":0}]
[null,"COTES D'AZUR",0,null,null,null,null,null,null,"Junior H",0,null,null,"Eurosport",{"$f":"IF(Nom_Région=\"TOTAL_REGIONS\",COUNTA(Eurosport),SUMPRODUCT((Inscriptions_AS=Nom_Région)*1,(Eurosport=\"X\")*1))","v":0}]
[null,"LCA",0,null,"Inscriptions Séjour - mini Semaine",null,null,"Nb Chambres ",null,"Sénior F",0,"< 41 ans"]
[null,"LIMOUSIN",0,null,"Séjour 4 Nuitées - Twin",null,{"$f":"IF(Nom_Région=\"TOTAL_REGIONS\",COUNTIF(Hébergement,\"4 Nuitées - Twin\"),SUMPRODUCT((Inscriptions_AS=Nom_Région)*1,(Hébergement=\"4 Nuitées - Twin\")*1))","v":0},{"$f":"G15/2","v":0},null,"Sénior H",0]
[null,"MIDI PYRENEES",0,null,"Séjour 4 Nuitées - Couple",null,{"$f":"IF(Nom_Région=\"TOTAL_REGIONS\",COUNTIF(Hébergement,\"4 Nuitées - Couple\"),SUMPRODUCT((Inscriptions_AS=Nom_Région)*1,(Hébergement=\"4 Nuitées - Couple\")*1))","v":0},{"$f":"G16/2","v":0},null,"Vétéran 1 F",0,"< 51 ans",null,"Options"]
[null,"NORD",0,null,"Séjour 4 Nuitées - Triple",null,{"$f":"IF(Nom_Région=\"TOTAL_REGIONS\",COUNTIF(Hébergement,\"4 Nuitées - Triple\"),SUMPRODUCT((Inscriptions_AS=Nom_Région)*1,(Hébergement=\"4 Nuitées - Triple\")*1))","v":0},{"$f":"G17","v":0},null,"Vétéran 1 H",0,null,null,{"$f":"IF(Références!D14 <>\"\",Références!D14,\"\")","v":""},{"$f":"IF(Nom_Région=\"TOTAL_REGIONS\",COUNTA(Option_1),SUMPRODUCT((Inscriptions_AS=Nom_Région)*1,(Option_1=\"X\")*1))","v":0}]
[null,"NORMANDIE",0,null,null,null,null,null,null,"Vétéran 2 F",0,">= 51 ans",null,{"$f":"IF(Références!D15 <>\"\",Références!D15,\"\")","v":""},{"$f":"IF(Nom_Région=\"TOTAL_REGIONS\",COUNTA(Option_2),SUMPRODUCT((Inscriptions_AS=Nom_Région)*1,(Option_2=\"X\")*1))","v":0}]
[null,"OUEST",{"$f":"COUNTIF(Inscriptions_AS,B19)","v":0},null,"TOTAL",null,{"$f":"SUM(G15:G18)","v":0},{"$f":"SUM(H15:H18)","v":0},null,"Vétéran 2 H",0,null,null,{"$f":"IF(Références!D16 <>\"\",Références!D16,\"\")","v":""},{"$f":"IF(Nom_Région=\"TOTAL_REGIONS\",COUNTA(Option_3),SUMPRODUCT((Inscriptions_AS=Nom_Région)*1,(Option_3=\"X\")*1))","v":0}]
[null,"PARIS",{"$f":"COUNTIF(Inscriptions_AS,B20)","v":0},null,null,null,null,null,null,"TOTAUX",{"$f":"SUM(K12:K19)","v":0}]
[null,"PROVENCE",{"$f":"COUNTIF(Inscriptions_AS,B21)","v":0},null,null,null,null,null,null,null,null,null,null,"Assurance Covid-19",{"$f":"IF(Nom_Région=\"TOTAL_REGIONS\",COUNTA(Option_Assurance),SUMPRODUCT((Inscriptions_AS=Nom_Région)*1,(Option_Assurance=\"X\")*1))","v":0}]
[null,"RHÔNE",{"$f":"COUNTIF(Inscriptions_AS,B22)","v":0},null,"Forfaits 6j RM Alpin",null,{"$f":"IF(Nom_Région=\"TOTAL_REGIONS\",COUNTIF(RM_Cours,\"RM 6J*\"),SUMPRODUCT((Inscriptions_AS=Nom_Région)*1,(MID(RM_Cours,1,5)=\"RM 6J\")*1))","v":0}]
[null,"TOTAUX",{"$f":"SUM(C8:C22)","v":0},null,"Forfaits 3j RM Alpin",null,{"$f":"IF(Nom_Région=\"TOTAL_REGIONS\",COUNTIF(RM_Cours,\"RM 3J*\"),SUMPRODUCT((Inscriptions_AS=Nom_Région)*1,(MID(RM_Cours,1,5)=\"RM 3J\")*1))","v":0},"+ Samedi",{"$f":"IF(Nom_Région=\"TOTAL_REGIONS\",COUNTA(Option_RM),SUMPRODUCT((Inscriptions_AS=Nom_Région)*1,(Option_RM=\"X\")*1))","v":0},null,null,null,null,"Forfaits 6j Fond",{"$f":"IF(Nom_Région=\"TOTAL_REGIONS\",COUNTIF(Cours_Fond,\"Forfait 6J*\"),SUMPRODUCT((Inscriptions_AS=Nom_Région)*1,(MID(Cours_Fond,1,10)=\"Forfait 6J\")*1))","v":0}]
[]
[null,"Transports",null,null,"Inscriptions Cours Ski / Surf",null,null,"Débutant","Moyen","Bon","Compétition",null,null,"Inscription Cours Fond"]
[null,"Voiture",{"$f":"IF(Nom_Région<>\"TOTAL_REGIONS\",SUMPRODUCT((Inscriptions_AS=Nom_Région)*1,(Transport=B26)*1),SUMPRODUCT((Transport=B26)*1))","v":0},null,"Cours Ski","3h30",{"$f":"IF(Nom_Région=\"TOTAL_REGIONS\",COUNTIF(RM_Cours,\"*Ski 3h*\"),SUMPRODUCT((Inscriptions_AS=Nom_Région)*1,(MID(RM_Cours,9,6)=\"Ski 3h\")*1))","v":0},{"$f":"IF(Nom_Région<>\"TOTAL_REGIONS\",SUMPRODUCT((Inscriptions_AS=Nom_Région)*1,(MID(RM_Cours,9,6)=\"Ski 3h\")*1,(Niveau_Ski_Surf=\"DEB\")*1),SUMPRODUCT((MID(RM_Cours,9,6)=\"Ski 3h\")*1,(Niveau_Ski_Surf=\"DEB\")*1))","v":0},{"$f":"IF(Nom_Région<>\"TOTAL_REGIONS\",SUMPRODUCT((Inscriptions_AS=Nom_Région)*1,(MID(RM_Cours,9,6)=\"Ski 3h\")*1,(Niveau_Ski_Surf=\"MOY\")*1),SUMPRODUCT((MID(RM_Cours,9,6)=\"Ski 3h\")*1,(Niveau_Ski_Surf=\"MOY\")*1))","v":0},{"$f":"IF(Nom_Région<>\"TOTAL_REGIONS\",SUMPRODUCT((Inscriptions_AS=Nom_Région)*1,(MID(RM_Cours,9,6)=\"Ski 3h\")*1,(Niveau_Ski_Surf=\"BON\")*1),SUMPRODUCT((MID(RM_Cours,9,6)=\"Ski 3h\")*1,(Niveau_Ski_Surf=\"BON\")*1))","v":0},{"$f":"IF(Nom_Région<>\"TOTAL_REGIONS\",SUMPRODUCT((Inscriptions_AS=Nom_Région)*1,(MID(RM_Cours,9,6)=\"Ski 3h\")*1,(Niveau_Ski_Surf=\"COMP\")*1),SUMPRODUCT((MID(RM_Cours,9,6)=\"Ski 3h\")*1,(Niveau_Ski_Surf=\"COMP\")*1))","v":0},{"$f":"G26+G27","v":0},null,{"$f":"IF(Liste_Fond_2J<>\"\",Liste_Fond_2J,\"\")","v":""},{"$f":"IF(Nom_Région=\"TOTAL_REGIONS\",COUNTIF(Cours_Fond,\"*1J F*\"),SUMPRODUCT((Inscriptions_AS=Nom_Région)*1,(MID(Cours_Fond,12,4)=\"1J F\")*1))","v":0}]
[null,"Minibus",{"$f":"IF(Nom_Région<>\"TOTAL_REGIONS\",SUMPRODUCT((Inscriptions_AS=Nom_Région)*1,(Transport=B27)*1),SUMPRODUCT((Transport=B27)*1))","v":0},null,null,"5h30",{"$f":"IF(Nom_Région=\"TOTAL_REGIONS\",COUNTIF(RM_Cours,\"*Ski 5h*\"),SUMPRODUCT((Inscriptions_AS=Nom_Région)*1,(MID(RM_Cours,9,6)=\"Ski 5h\")*1))","v":0},{"$f":"IF(Nom_Région<>\"TOTAL_REGIONS\",SUMPRODUCT((Inscriptions_AS=Nom_Région)*1,(MID(RM_Cours,9,6)=\"Ski 5h\")*1,(Niveau_Ski_Surf=\"DEB\")*1),SUMPRODUCT((MID(RM_Cours,9,6)=\"Ski 5h\")*1,(Niveau_Ski_Surf=\"DEB\")*1))","v":0},{"$f":"IF(Nom_Région<>\"TOTAL_REGIONS\",SUMPRODUCT((Inscriptions_AS=Nom_Région)*1,(MID(RM_Cours,9,6)=\"Ski 5h\")*1,(Niveau_Ski_Surf=\"MOY\")*1),SUMPRODUCT((MID(RM_Cours,9,6)=\"Ski 5h\")*1,(Niveau_Ski_Surf=\"MOY\")*1))","v":0},{"$f":"IF(Nom_Région<>\"TOTAL_REGIONS\",SUMPRODUCT((Inscriptions_AS=Nom_Région)*1,(MID(RM_Cours,9,6)=\"Ski 5h\")*1,(Niveau_Ski_Surf=\"BON\")*1),SUMPRODUCT((MID(RM_Cours,9,6)=\"Ski 5h\")*1,(Niveau_Ski_Surf=\"BON\")*1))","v":0},{"$f":"IF(Nom_Région<>\"TOTAL_REGIONS\",SUMPRODUCT((Inscriptions_AS=Nom_Région)*1,(MID(RM_Cours,9,6)=\"Ski 5h\")*1,(Niveau_Ski_Surf=\"COMP\")*1),SUMPRODUCT((MID(RM_Cours,9,6)=\"Ski 5h\")*1,(Niveau_Ski_Surf=\"COMP\")*1))","v":0},null,null,{"$f":"IF(Références!G12<>\"\",Références!G12,\"\")","v":"Cours 2H - 2J Fond"},{"$f":"IF(Nom_Région=\"TOTAL_REGIONS\",COUNTIF(Cours_Fond,\"*2J F*\"),SUMPRODUCT((Inscriptions_AS=Nom_Région)*1,(MID(Cours_Fond,12,4)=\"2J F\")*1))","v":0}]
[null,"Train",{"$f":"IF(Nom_Région<>\"TOTAL_REGIONS\",SUMPRODUCT((Inscriptions_AS=Nom_Région)*1,(Transport=B28)*1),SUMPRODUCT((Transport=B28)*1))","v":0},null,"Cours Surf","3h30",{"$f":"IF(Nom_Région=\"TOTAL_REGIONS\",COUNTIF(RM_Cours,\"*Surf 3h*\"),SUMPRODUCT((Inscriptions_AS=Nom_Région)*1,(MID(RM_Cours,9,7)=\"Surf 3h\")*1))","v":0},{"$f":"IF(Nom_Région<>\"TOTAL_REGIONS\",SUMPRODUCT((Inscriptions_AS=Nom_Région)*1,(MID(RM_Cours,9,6)=\"Surf 3\")*1,(Niveau_Ski_Surf=\"DEB\")*1),SUMPRODUCT((MID(RM_Cours,9,6)=\"Surf 3\")*1,(Niveau_Ski_Surf=\"DEB\")*1))","v":0},{"$f":"IF(Nom_Région<>\"TOTAL_REGIONS\",SUMPRODUCT((Inscriptions_AS=Nom_Région)*1,(MID(RM_Cours,9,6)=\"Surf 3\")*1,(Niveau_Ski_Surf=\"MOY\")*1),SUMPRODUCT((MID(RM_Cours,9,6)=\"Surf 3\")*1,(Niveau_Ski_Surf=\"MOY\")*1))","v":0},{"$f":"IF(Nom_Région<>\"TOTAL_REGIONS\",SUMPRODUCT((Inscriptions_AS=Nom_Région)*1,(MID(RM_Cours,9,6)=\"Surf 3\")*1,(Niveau_Ski_Surf=\"BON\")*1),SUMPRODUCT((MID(RM_Cours,9,6)=\"Surf 3\")*1,(Niveau_Ski_Surf=\"BON\")*1))","v":0},{"$f":"IF(Nom_Région<>\"TOTAL_REGIONS\",SUMPRODUCT((Inscriptions_AS=Nom_Région)*1,(MID(RM_Cours,9,6)=\"Surf 3\")*1,(Niveau_Ski_Surf=\"COMP\")*1),SUMPRODUCT((MID(RM_Cours,9,6)=\"Surf 3\")*1,(Niveau_Ski_Surf=\"COMP\")*1))","v":0},{"$f":"G28+G29","v":0},null,{"$f":"IF(Références!G13<>\"\",Références!G13,\"\")","v":""},{"$f":"IF(Nom_Région=\"TOTAL_REGIONS\",COUNTIF(Cours_Fond,\"*3J F*\"),SUMPRODUCT((Inscriptions_AS=Nom_Région)*1,(MID(Cours_Fond,12,4)=\"3J F\")*1))","v":0}]
[null,"Train AS",{"$f":"IF(Nom_Région<>\"TOTAL_REGIONS\",SUMPRODUCT((Inscriptions_AS=Nom_Région)*1,(Transport=B29)*1),SUMPRODUCT((Transport=B29)*1))","v":0},null,null,"5h30",{"$f":"IF(Nom_Région=\"TOTAL_REGIONS\",COUNTIF(RM_Cours,\"*Surf 5h*\"),SUMPRODUCT((Inscriptions_AS=Nom_Région)*1,(MID(RM_Cours,9,7)=\"Surf 5h\")*1))","v":0},{"$f":"IF(Nom_Région<>\"TOTAL_REGIONS\",SUMPRODUCT((Inscriptions_AS=Nom_Région)*1,(MID(RM_Cours,9,6)=\"Surf 5\")*1,(Niveau_Ski_Surf=\"DEB\")*1),SUMPRODUCT((MID(RM_Cours,9,6)=\"Surf 5\")*1,(Niveau_Ski_Surf=\"DEB\")*1))","v":0},{"$f":"IF(Nom_Région<>\"TOTAL_REGIONS\",SUMPRODUCT((Inscriptions_AS=Nom_Région)*1,(MID(RM_Cours,9,6)=\"Surf 5\")*1,(Niveau_Ski_Surf=\"MOY\")*1),SUMPRODUCT((MID(RM_Cours,9,6)=\"Surf 5\")*1,(Niveau_Ski_Surf=\"MOY\")*1))","v":0},{"$f":"IF(Nom_Région<>\"TOTAL_REGIONS\",SUMPRODUCT((Inscriptions_AS=Nom_Région)*1,(MID(RM_Cours,9,6)=\"Surf 5\")*1,(Niveau_Ski_Surf=\"BON\")*1),SUMPRODUCT((MID(RM_Cours,9,6)=\"Surf 5\")*1,(Niveau_Ski_Surf=\"BON\")*1))","v":0},{"$f":"IF(Nom_Région<>\"TOTAL_REGIONS\",SUMPRODUCT((Inscriptions_AS=Nom_Région)*1,(MID(RM_Cours,9,6)=\"Surf 5\")*1,(Niveau_Ski_Surf=\"COMP\")*1),SUMPRODUCT((MID(RM_Cours,9,6)=\"Surf 5\")*1,(Niveau_Ski_Surf=\"COMP\")*1))","v":0},null,null,"Niveaux Fond"]
[null,null,{"$f":"SUM(C26:C29)","v":0},null,"TOTAL Ski / Surf",null,{"$f":"SUM(G26:G29)","v":0},{"$f":"SUM(H26:H29)","v":0},{"$f":"SUM(I26:I29)","v":0},{"$f":"SUM(J26:J29)","v":0},{"$f":"SUM(K26:K29)","v":0},null,null,"Débutant",{"$f":"IF(Nom_Région<>\"TOTAL_REGIONS\",SUMPRODUCT((Inscriptions_AS=Nom_Région)*1,(MID(Cours_Fond,1,5)=\"Cours\")*1,(Niveau_Fond=\"DEB\")*1),SUMPRODUCT((MID(Cours_Fond,1,5)=\"Cours\")*1,(Niveau_Fond=\"DEB\")*1))","v":0}]
[null,null,null,null,null,null,null,null,null,null,null,null,null,"Initié",{"$f":"IF(Nom_Région<>\"TOTAL_REGIONS\",SUMPRODUCT((Inscriptions_AS=Nom_Région)*1,(MID(Cours_Fond,1,5)=\"Cours\")*1,(Niveau_Fond=\"INITIE\")*1),SUMPRODUCT((MID(Cours_Fond,1,5)=\"Cours\")*1,(Niveau_Fond=\"INITIE\")*1))","v":0}]
[null,"Statistiques","FTV","INA","RF","TDF","Total\nAGT","CJT","EXT","ENF - & +","Total\nHors AGT"]
[null,"Nb Agents",{"$f":"IF(Nom_Région=\"TOTAL_REGIONS\",COUNTIF(Société,C32),SUMPRODUCT((Inscriptions_AS=Nom_Région)*1,(Société=C32)*1))","v":0},{"$f":"IF(Nom_Région=\"TOTAL_REGIONS\",COUNTIF(Société,D32),SUMPRODUCT((Inscriptions_AS=Nom_Région)*1,(Société=D32)*1))","v":0},{"$f":"IF(Nom_Région=\"TOTAL_REGIONS\",COUNTIF(Société,E32),SUMPRODUCT((Inscriptions_AS=Nom_Région)*1,(Société=E32)*1))","v":0},{"$f":"IF(Nom_Région=\"TOTAL_REGIONS\",COUNTIF(Société,F32),SUMPRODUCT((Inscriptions_AS=Nom_Région)*1,(Société=F32)*1))","v":0},{"$f":"SUM(C33:F33)","v":0},{"$f":"IF(Nom_Région=\"TOTAL_REGIONS\",COUNTIF(Statut,H32),SUMPRODUCT((Inscriptions_AS=Nom_Région)*1,(Statut=H32)*1))","v":0},{"$f":"IF(Nom_Région=\"TOTAL_REGIONS\",COUNTIF(Statut,I32),SUMPRODUCT((Inscriptions_AS=Nom_Région)*1,(Statut=I32)*1))","v":0},{"$f":"IF(Nom_Région=\"TOTAL_REGIONS\",COUNTIF(Statut,\"ENF?\"),SUMPRODUCT((Inscriptions_AS=Nom_Région)*1,(MID(Statut,1,3)=\"ENF\")*1))","v":0},{"$f":"SUM(H33:J33)","v":0}]
[null,"% / Total Agents",{"$f":"IF(C33<>0,IF(Nom_Région=\"TOTAL_REGIONS\",C33/COUNTIF(Statut,\"AGT\"),C33/Total_Agents),0)","v":0},{"$f":"IF(D33<>0,IF(Nom_Région=\"TOTAL_REGIONS\",D33/COUNTIF(Statut,\"AGT\"),D33/Total_Agents),0)","v":0},{"$f":"IF(E33<>0,IF(Nom_Région=\"TOTAL_REGIONS\",E33/COUNTIF(Statut,\"AGT\"),E33/Total_Agents),0)","v":0},{"$f":"IF(F33<>0,IF(Nom_Région=\"TOTAL_REGIONS\",F33/COUNTIF(Statut,\"AGT\"),F33/Total_Agents),0)","v":0},{"$f":"SUM(C34:F34)","v":0}]
[null,"% / Total Participants",{"$f":"IF(C33<>0,IF(Nom_Région=\"TOTAL_REGIONS\",C33/Total_Participant,C33/VLOOKUP(Nom_Région,Tableau_Régions,2)),0)","v":0},{"$f":"IF(D33<>0,IF(Nom_Région=\"TOTAL_REGIONS\",D33/Total_Participant,D33/VLOOKUP(Nom_Région,Tableau_Régions,2)),0)","v":0},{"$f":"IF(E33<>0,IF(Nom_Région=\"TOTAL_REGIONS\",E33/Total_Participant,E33/VLOOKUP(Nom_Région,Tableau_Régions,2)),0)","v":0},{"$f":"IF(F33<>0,IF(Nom_Région=\"TOTAL_REGIONS\",F33/Total_Participant,F33/VLOOKUP(Nom_Région,Tableau_Régions,2)),0)","v":0},{"$f":"SUM(C35:F35)","v":0},{"$f":"IF(H33<>0,IF(Nom_Région=\"TOTAL_REGIONS\",H33/Total_Participant,H33/VLOOKUP(Nom_Région,Tableau_Régions,2)),0)","v":0},{"$f":"IF(I33<>0,IF(Nom_Région=\"TOTAL_REGIONS\",I33/Total_Participant,I33/VLOOKUP(Nom_Région,Tableau_Régions,2)),0)","v":0},{"$f":"IF(J33<>0,IF(Nom_Région=\"TOTAL_REGIONS\",J33/Total_Participant,J33/VLOOKUP(Nom_Région,Tableau_Régions,2)),0)","v":0},{"$f":"SUM(H35:J35)","v":0}]
[null,null,null,null,null,null,null,null,null,"ENF- : < 18 ans"]
[null,null,null,null,null,null,null,null,null,"ENF+ : 18 à 25 ans"]

{"sheet":"Commandes Macro","index":2,"n_rows":24,"n_cols":11,"rows_kept":24,"cut":false,"hidden":false,"merged":[[0,3,0,10]]}
[null,null,null,"TABLEAU DE BORD - BOUTONS DE COMMANDE MACRO"]
[]
[]
["Import  INSCRIPTION  Individuelle",null,null,null,null,null,null,null,null,null,"AJOUT Lignes"]
[]
["Prérequis :","Avant toute commande d'Import"]
["- Placer la fiche INSCRIPTION de préférence dans le même répertoire que le fichier REGION ou RECAP_REGION"]
["- Contrôler son remplissage correcte et la refermer "]
["- Vérifier la conformité du Nom du fichier REGION ou RECAP utilisé : "]
[null,null,"Si fichier REGION : ",{"$f":"Références!E29","v":"JNH_ORCIERES_MERLETTE_2021_REGION"},null,null,null,null,null,null,"SUPPRESSION Lignes"]
[null,null,"Si fichier RECAP :  ",{"$f":"Références!E27","v":"JNH_ORCIERES_MERLETTE_2021_RECAP_REGIONS"}]
["Informations :",null,null,null,null,null,null,null,null,null,"Prérequis - Attention ! :"]
["Peu importe le nom initial du fichier INSCRIPTION, il sera renomé avec rajout du NOM & Prénom du Participant",null,null,null,null,null,null,null,null,null,"Sélectionner au préalable, la ou les lignes entières et contigues"]
[]
[]
[]
["Import  Inscriptions  REGION",null,null,null,null,null,null,null,null,null,"FORMAT & PROTECTION Fiche INSCRIPTION"]
[null,null,null,null,null,null,null,null,null,null,"Impérativement Avant Diffusion"]
["Prérequis :","Avant toute commande d'Import",null,null,null,null,null,null,null,null,"Prérequis : Nom Fiche Inscription doit être"]
["- Placer le fichier REGION d'une AS de préférence dans le même répertoire que le fichier RECAP_ REGIONS",null,null,null,null,null,null,null,null,null,"identique à Nom dans onglet Références"]
["- Contrôler son remplissage correcte avec le champs AS (ligne 6) qui doit être impérativement renseigné, puis le refermer"]
["- Vérifier la conformité du Nom du fichier  RECAP utilisé : ",null,null,null,null,{"$f":"Références!E27","v":"JNH_ORCIERES_MERLETTE_2021_RECAP_REGIONS"}]
["Informations :",null,null,null,null,null,null,null,null,null,"CREATION Fichier REGION"]
["Peu importe le nom initial du fichier REGION, il sera renomé avec rajout du NOM de l'AS"]

{"sheet":"Références","index":3,"n_rows":34,"n_cols":12,"rows_kept":34,"cut":false,"hidden":true,"merged":[[30,4,30,7],[19,9,20,9],[26,4,26,7],[28,4,28,7],[0,2,0,7],[1,2,1,7]]}
[null,null,"JEUX NATIONAUX D'HIVER AUDIOVISUEL\nORCIERES_MERLETTE   23 AU 30 JANVIER 2021"]
[null,null,"RÉFÉRENCES"]
[]
["Liste AS",null,"Liste Séjour","Liste Prix Séjour",null,null,"Activité\nListe Choix Semaine","Liste Prix Forfait","Liste Prix Cours","Liste Total\nRM + COURS",null,"Niveau Ski"]
["ALPES",null,"7 Nuitées - Twin",500,null,null,"RM 6J Alpin",150,null,{"$f":"H5+I5","v":150},null,"COMP"]
["ALSACE",null,"7 Nuitées - Couple",500,null,null,"RM 6J + SKI 3h30",150,70,220,null,"BON"]
["AQUITAINE",null,"7 Nuitées - Single",650,null,null,"RM 6J + SKI 5h30",150,100,250,null,"MOY"]
["BFC",null,"7 Nuitées - Triple",470,null,null,"RM 6J + SURF 3h30",150,70,220,null,"DEB"]
["CORSE",null,"3 Nuitées - Twin",250,null,null,null,null,null,0]
["COTES D'AZUR",null,"3 Nuitées - Couple",250,null,null,null,null,null,0,null,"Niveau Fond"]
["LCA",null,"3 Nuitées - Triple",235,null,null,null,null,null,{"$f":"H11+I11","v":0},null,"INITIE"]
["LIMOUSIN",null,"3 Nuitées - Single",320,null,null,"Cours 2H - 2J Fond",null,45,{"$f":"H12+I12","v":45},null,"DEB"]
["MIDI PYRENEES",null,"Options","Libellé Options","Tarifs",null,null,null,null,{"$f":"H13+I13","v":0}]
["NORD",null,"Option 1",null,null,null,"Liste Choix mini Semaine","Liste Prix Forfaits"]
["NORMANDIE",null,"Option 2",null,null,null,"RM 3J Alpin",95,null,{"$f":"H15+I15","v":95}]
["OUEST",null,"Option 3",null,null,null,null,null,null,{"$f":"H16+I16","v":0}]
["PARIS",null,"Option RM","RM  Samedi",null,null,null,null,null,null,null,"Liste Société"]
["PROVENCE",null,"Option Assurance","Assurance Covid",33,null,null,null,"Junior : <",18,null,"FTV"]
["RHÔNE",null,null,null,null,null,null,null,"Senior : <",41,null,"INA"]
["TOTAL_REGIONS",null,null,null,"A mettre à jour",null,null,null,"Vétéran 1 : <",51,null,"RF"]
[null,null,null,"Au 01/01/année JNH :","2021-01-01",null,null,null,"Vétéran 2 : >=",null,null,"TDF"]
[]
[]
[]
[]
[]
["Nom du fichier RECAP REGIONS :",null,null,null,"JNH_ORCIERES_MERLETTE_2021_RECAP_REGIONS"]
[]
["Nom du fichier Inscriptions REGION :",null,null,null,"JNH_ORCIERES_MERLETTE_2021_REGION"]
[]
["Nom du fichier Inscription Individuelle :",null,null,null,"JNH_ORCIERES_MERLETTE_2021_INSCRIPTION"]
[]
["Protection avec Mdp : onglet Inscription, Classeur et macros VBA  :",null,null,null,null,null,"JeuxHiver"]
["Protection sans Mdp  : les autres onglets"]

{"sheet":"Feuil5","index":4,"n_rows":0,"n_cols":0,"rows_kept":0,"cut":false,"hidden":true,"merged":[]}